Cogmind - Beta 14 @@@ ROGUE MODE // 2024.09.02 @ 20:56:38 Player: Rzcen Result: Destroyed by S-10 Pest with Light Assault Rifle Performance ------------- Evolutions (0) 0 Regions Visited (2) 400 Robots Destroyed (19) 95 Value Destroyed (341) 341 Prototype IDs (1) 20 Alien Tech Used (0) 0 Bonus (0) 0 TOTAL SCORE: 856 Bonus ------- None Cogmind --------- Core Integrity 0/250 Matter 191/300 Energy 100/100 System Corruption 0% Temperature Cool (0) Movement Rolling (110) Ox2 Location -10/Mines Parts ------- > --- POWER (1) -------- (None) > --- PROPULSION (2) --- Wheel > --- UTILITY (2) ------ Large Storage Unit > --- WEAPON (2) ------- Light Assault Rifle Light Assault Rifle > --- INVENTORY (15) --- Flight Unit Improved Heat Sink High-capacity Storage Unit ECM Suite Utility Shielding Improved EM Shotgun Improved EM Shotgun Improved EM Shotgun Improved EM Shotgun Rocket Launcher Rocket Launcher Rocket Launcher Rocket Launcher Explosive Trap Explosive Trap Peak State ------------ > --- POWER ------------ Light Nuclear Core > --- PROPULSION ------- Flight Unit Flight Unit > --- UTILITY ---------- Large Storage Unit > --- WEAPON ----------- Rocket Launcher Rocket Launcher > --- INVENTORY -------- Improved Heat Sink High-capacity Storage Unit ECM Suite Utility Shielding Improved EM Shotgun Improved EM Shotgun Improved EM Shotgun Improved EM Shotgun Light Assault Rifle Light Assault Rifle Rocket Launcher Rocket Launcher Explosive Trap Explosive Trap [Rating: 12] Favorites ----------- Power Light Ion Engine Engine Light Ion Engine Power Core Light Nuclear Core Propulsion Flight Unit Treads Light Treads Wheel Wheel Flight Unit Flight Unit Utility Large Storage Unit Storage Large Storage Unit Weapon Improved EM Shotgun Energy Gun Improved EM Shotgun Ballistic Gun Light Assault Rifle Launcher Rocket Launcher Build | -11 -10 -10 ------- Run | Yrd Mat Min Slots Evolved . | . . . Power . | . . . Propulsion . | . . . Utility . | . . . Weapon . | . . . Parts Attached 20 | 6 6 8 Power 3 | 1 1 1 Engine 2 | 1 1 . Core 1 | . . 1 Reactor . | . . . Propulsion 6 | 2 1 3 Treads 3 | 2 1 . Leg . | . . . Wheel 1 | . . 1 Hover . | . . . Flight 2 | . . 2 Utility 2 | 1 1 . Device . | . . . Storage 2 | 1 1 . Processor . | . . . Hackware . | . . . Protection . | . . . Artifact . | . . . Weapon 9 | 2 3 4 Energy Gun 4 | 1 3 . Energy Cannon . | . . . Ballistic Gun 3 | 1 . 2 Ballistic Cannon . | . . . Launcher 2 | . . 2 Special Weapon . | . . . Impact Weapon . | . . . Slashing Weapon . | . . . Piercing Weapon . | . . . Special Melee Weapon . | . . . Unidentified Prototypes 1 | . 1 . Parts Lost 6 | . 3 3 Power 3 | . 1 2 Propulsion 2 | . 1 1 Utility . | . . . Weapon 1 | . 1 . Highest Loss Streak 3 | . 3 1 To Critical Strikes . | . . . Average Slot Usage (%) 74 | . 79 72 Engine 7 | . 13 5 Core 2 | . . 3 Treads 10 | . 23 4 Flight 10 | . . 15 Storage 14 | . 14 14 Energy Gun 16 | . 17 16 Ballistic Gun 4 | . 10 2 Launcher 6 | . . 9 Peak Build Rating 12 | 6 11 12 Average Rating 9 | 4 7 10 On Entrance 5 | . 6 11 Naked Turns . | . . . Heaviest Build 33 | 10 29 33 Greatest Support 40 | 40 40 20 Greatest Overweight (x) 9 | . 1 9 Average Overweight (x) 1 | . . 2 Largest Inventory Capacity 15 | 8 15 15 Average Capacity 14 | 7 13 15 Most Carried 15 | 5 12 15 Average Carried 11 | 2 8 13 Final Capacity 15 | 8 15 15 Final Carried 15 | 2 11 15 Class Distribution -------------------- 100% | Mutant Dominant Class ---------------- Mutant | -10/Materials Mutant | -10/Mines Resources | -11 -10 -10 ----------- Run | Yrd Mat Min Matter Collected 413 | 212 117 84 Remotely . | . . . Salvage Created 406 | . 220 186 Parts 31 | . 11 20 Haulers Intercepted . | . . . Recyclers Shooed . | . . . Parts Field Recycled . | . . . Retrieved Matter . | . . . Parts Self-Destructed . | . . . Prevented . | . . . Kills | -11 -10 -10 ------- Run | Yrd Mat Min Combat Hostiles Destroyed 18 | . 5 13 Guns 12 | . 5 7 AOE 6 | . . 6 Classes Destroyed 3 | . 1 2 Builder 1 | . . 1 Swarmer 13 | . . 13 Grunt 5 | . 5 . Best Kill Streak 3 | . 2 3 Combat Bots Only 3 | . 2 3 Max Kills in Single Turn 2 | . 1 2 Gunslinging . | . . . Exploded 2 | . . 2 Melee . | . . . Uniques/NPCs Destroyed . | . . . Combat | -11 -10 -10 -------- Run | Yrd Mat Min Hostile Shots Fired 118 | . 47 71 Missed 37 | . 11 26 Damage Taken 1039 | . 496 543 Core 256 | . 106 150 Absorbed by Shields . | . . . Core Remaining (%) 100 | 100 . . Volleys Fired 51 | . 23 28 Largest 2 | . 2 2 Hottest 90 | . 90 90 Shots Fired 100 | . 44 56 Gun 92 | . 44 48 Cannon . | . . . Launcher 8 | . . 8 Special . | . . . Kinetic 50 | . 20 30 Thermal 18 | . 18 . Explosive 8 | . . 8 Electromagnetic 24 | . 6 18 Robot Hit Streak 10 | . 10 4 Robot Miss Streak 6 | . 3 6 Penetration Max . | . . . Secondary Targets 2 | . 2 . Max Gunslinging Chain 1 | . 1 . Shots Hit Robots 61 | . 33 28 Core Hits 30 | . 13 17 Critical Kills . | . . . Critical Parts Destroyed . | . . . Critical Strikes . | . . . Melee Attacks . | . . . Impact . | . . . Slashing . | . . . Piercing . | . . . Sneak Attacks . | . . . Combat Hostiles . | . . . Follow-up Attacks . | . . . Damage Inflicted 1031 | . 342 689 Guns 647 | . 342 305 Cannons . | . . . Explosions 384 | . . 384 Melee . | . . . Ramming . | . . . Kinetic 304 | . 128 176 Thermal 146 | . 122 24 Explosive 360 | . . 360 Electromagnetic 221 | . 92 129 Impact . | . . . Slashing . | . . . Piercing . | . . . Highest Corruption . | . . . Average Corruption . | . . . Corruption Purged . | . . . Corruption Blocked . | . . . Overload Shots . | . . . Overflow Damage 42 | . . 42 Projectiles . | . . . Explosions 42 | . . 42 Melee . | . . . Knockbacks . | . . . Impact . | . . . Kinetic . | . . . Secondary . | . . . Self-Inflicted Damage 196 | . . 196 Shots 5 | . . 5 Rammed . | . . . Targets Rammed . | . . . Kicked . | . . . Crushed . | . . . Highest Temperature 128 | . 128 90 Average Temperature 48 | . 54 38 Received Heat Transfer 249 | . 249 . Siege Activations . | . . . Robots Corrupted . | . . . Combat Hostiles . | . . . Parts Fried 1 | . 1 . Impact Corruptions . | . . . Robots Melted . | . . . Combat Hostiles . | . . . Parts Melted 1 | . 1 . Heat Transferred 275 | . 275 . Parts Sabotaged . | . . . Parts Stolen . | . . . Parts Stripped . | . . . Power Chain Reactions 2 | . . 2 Alert | -11 -10 -10 ------- Run | Yrd Mat Min Peak Influence 122 | . 70 122 Initial 27 | . . 27 Average 49 | . 28 59 Maximum Alert Level . | . . . Low Security (%) 100 | 100 100 100 Level 1 . | . . . Level 2 . | . . . Level 3 . | . . . Level 4 . | . . . Level 5 . | . . . High Security . | . . . Max Security . | . . . Squads Dispatched 1 | . 1 . Investigation . | . . . Extermination . | . . . Reinforcement 1 | . 1 . Assault . | . . . Garrison . | . . . Intercept . | . . . Searches Triggered . | . . . Construction Impeded . | . . . Haulers Reinforced . | . . . Active Scanning Responses . | . . . Cargo Convoy Interrupts . | . . . Stealth | -11 -10 -10 --------- Run | Yrd Mat Min Distress Signals 1 | . 1 . Communications Jammed . | . . . Distress Signals . | . . . Times Spotted 25 | . 6 19 Peak Tracking Total 4 | . 4 3 Tactical Retreats 3 | . . 3 Traps | -11 -10 -10 ------- Run | Yrd Mat Min Traps Triggered 2 | . 2 . Indirectly . | . . . Trap Hack Attempts . | . . . Triggered . | . . . Disarmed . | . . . Reprogrammed . | . . . Reused . | . . . Traps Extracted . | . . . Installed . | . . . Triggered . | . . . Most Traps Carried 2 | . . 2 Machines | -11 -10 -10 ---------- Run | Yrd Mat Min Machines Disabled 1 | . . 1 Max in Single Turn 1 | . . 1 Machines Repaired . | . . . Machines Dismantled . | . . . Machines Sabotaged . | . . . Overloaded Fab Kills . | . . . Hacking | -11 -10 -10 --------- Run | Yrd Mat Min Machines Accessed . | . . . Terminals . | . . . Fabricators . | . . . Repair Stations . | . . . Recycling Units . | . . . Scanalyzers . | . . . Garrison Access . | . . . Total Hacks . | . . . Successful . | . . . Failed . | . . . Catastrophic . | . . . Database Lockouts . | . . . Manual . | . . . Terminals . | . . . Fabricators . | . . . Repair Stations . | . . . Recycling Units . | . . . Scanalyzers . | . . . Garrison Access . | . . . Terminal Hacks . | . . . Fabricator Hacks . | . . . Repair Station Hacks . | . . . Recycling Unit Hacks . | . . . Scanalyzer . | . . . Garrison Access Hacks . | . . . Unauthorized Hacks . | . . . Terminals . | . . . Fabricators . | . . . Repair Stations . | . . . Recycling Units . | . . . Scanalyzers . | . . . Garrison Access . | . . . Data Cores Recovered . | . . . Used . | . . . Hacking Detections . | . . . Full Trace Events . | . . . Feedback Events . | . . . Feedback Blocked . | . . . Robot Schematics Acquired . | . . . Robots Built . | . . . Authchips . | . . . Time . | . . . Total Robot Build Rating . | . . . Part Schematics Acquired . | . . . Parts Built . | . . . Authchips . | . . . Time . | . . . Total Part Build Rating . | . . . Parts Repaired . | . . . Time . | . . . Parts Recycled . | . . . Recycled Matter . | . . . Retrieved Matter . | . . . Retrieved Components . | . . . Parts Scanalyzed . | . . . Part Schematics Acquired . | . . . Parts Damaged . | . . . Bothacking | -11 -10 -10 ------------ Run | Yrd Mat Min Used RIF Installer . | . . . Robots Hacked . | . . . Non-combat . | . . . Combat . | . . . Robot Hacks Applied . | . . . Relay Couplers Released . | . . . Fabnet Peak Effective % . | . . . Robots Rewired . | . . . Allies Hacked . | . . . Hacks Repelled . | . . . Allies | -11 -10 -10 -------- Run | Yrd Mat Min Total Allies . | . . . Largest Group . | . . . Highest-Rated Group . | . . . Highest-Rated Ally . | . . . Total Orders . | . . . Ally Attacks . | . . . Total Damage . | . . . Kills . | . . . Allies Corrupted . | . . . Allies Melted . | . . . Intel | -11 -10 -10 ------- Run | Yrd Mat Min Robot Analysis Total . | . . . Derelict Logs Recovered 1 | . . 1 Drone Launches . | . . . Drone Recoveries . | . . . Exploration | -11 -10 -10 ------------- Run | Yrd Mat Min Turns Passed 2150 | 57 573 1520 Spaces Moved 811 | 42 257 512 Core 39 | 20 . 19 Treads 495 | 22 257 216 Legs . | . . . Wheels 24 | . . 24 Hover . | . . . Flight 253 | . . 253 Fastest Speed 50 | 50 160 110 Average Speed 234 | 107 175 274 Slowest Speed 500 | 160 240 500 Overloaded Moves . | . . . Propulsion Burnouts . | . . . Robots Hopped . | . . . Cave-ins Triggered . | . . . Exploration Rate (%) 47 | 4 40 98 Regions Visited 2 Branch Regions 1 Pre-discovered Areas 1 | . . 1 Known Exits Taken . | . . . Unknown Exits Taken 2 | 1 1 . Scrap Searched 2 | . . 2 Spaces Dug . | . . . Terrain Destroyed 94 | . . 94 Melee . | . . . Projectile . | . . . AOE 94 | . . 94 Terrain Rammed . | . . . Walls Destroyed . | . . . Machines Disabled . | . . . Actions | -11 -10 -10 --------- Run | Yrd Mat Min Total 964 | 52 339 573 Wait 56 | . 39 17 Move 809 | 41 256 512 Hop . | . . . Pick Up 26 | 5 14 7 Fast Attach 3 | 3 . . Attach 11 | 3 5 3 Detach . | . . . Swap 6 | . 1 5 Drop 2 | . 1 1 Fire 51 | . 23 28 Melee . | . . . Ram . | . . . Kick . | . . . Crush . | . . . Escape Stasis . | . . . Rewire . | . . . Trap . | . . . Miscellaneous . | . . . Route ------- -11/Scrapyard -10/Materials (discovered 2 exits: [*Mat] / [*Min]) -10/Mines (discovered 2 exits: [*Mat x2]) History --------- Turn | Location | Event 2 | -11/Scrapyard | Discovered new exit (range 16) 58 | -11/Scrapyard | Entered Materials 209 | -10/Materials | Discovered new exit (range 12) 301 | -10/Materials | Build established: Mutant 409 | -10/Materials | Discovered new exit (range 11) 524 | -10/Materials | Lost 3 parts (1p1n1w) 631 | -10/Materials | Entered Mines 748 | -10/Mines | Core integrity fell below 50% 1198 | -10/Mines | Discovered new exit (range 16) 1305 | -10/Mines | Discovered new exit (range 15) 1535 | -10/Mines | Found a hidden stash of uninstalled traps 2135 | -10/Mines | Core integrity fell below 20% 2151 | -10/Mines | Destroyed by S-10 Pest with Light Assault Rifle Last Messages --------------- 01713_ U-05 Engineer builds a Wall. 01722_ U-05 Engineer lays Concrete. 01723_ U-05 Engineer builds a Wall. 02039_ Lgt. Nuclear Core destroyed. 02039_ Destroyed Lgt. Nuclear Core. 02039_ S-10 Pest destroyed. 02043_ The unstable cave ceiling collapses. 02046_ U-05 Engineer builds a Wall. 02054_ The unstable cave ceiling collapses. 02056_ T-07 Excavator is excavating. 02057_ The unstable cave ceiling collapses. 02060_ T-07 Excavator is excavating. 02062_ The unstable cave ceiling collapses. 02065_ T-07 Excavator is excavating. 02088_ U-05 Engineer destroyed. 02092_ Acquired 24 matter. 02096_ Acquired Wheel. 02099_ Dropped Flight Unit. 02109_ Acquired 20 matter. 02136_ S-10 Pest destroyed. Map ----- +----------------------------------------------------+ | | | | | | | | | | | | | | | | | | | | | | | | | ?????????????????????????????????????????? | | ?????????????????????????????????????????? | | ?????????????####????????????????????????? | | ????????????## #????????????????????????# | | ?#########??# #???????????????????????## | | ?# #??# #????????#####?????????## | | ?# #### ##?????### ##????##### | | ?# ## ###??## ###?##"""# | | ?# ## ## #### """" ###" % | | ?# < ## ## ## """" ### #"## | | ?# <= """" ##### | | ?# """ ss% #???# | | ?# """ ### * #######???? | | ?# """ #?# @ ##### ##????????? | | ?# #?# ##???## ##???????? | | ?#########?# ## #?????# ##??????? | | ???????????# #### ##?????# ##?????? | | ??????????## #??####??????# ! #?????? | | ??????????# #????????????# = * ##?????? | | ?????????## #????????????## ##??????? | | ?????????# ##?????????????## ##???????? | | ??###????# ##???????????????## #######??? | | ??# #???# ##????????????????# # #??? | | ??# #### ##?????????#####?# # ##?? | | ??# ## ##????????# ## # ##? | | ??# ###??????# # # #? | | ???# ### ##??????# #? | | ???#######?## #??????## ### #? | | ????????????# ##??????##### #? | | ????????????## ###???????# ##? | | ?????????????## ##??????# # # ##?# | | ??????????????# #?????## #######?## | | ??????????????# #????## #???????# | | ??????????????## ## #???## #???????# | | ???????????????# ##?###???# #???????# | | ?????????####### #????????# #???????# | | ?????????# #????????## #???????# | | ?????????## #????????## #????????# | +----------------------------------------------------+ Best States ------------- Heat Dissipation 25 Energy Generation 14 Energy Capacity 160 Matter Stores 300 Matter Capacity 300 Sight Range 16 Terrain Scan Density 10 Evasion (%) 50 Recoil Reduction 2 Item Schematics ----------------- None Robot Schematics ------------------ None Fabricated ------------ Nothing Alien Tech Used ----------------- None Achievements -------------- None Challenges ------------ None Game ------ Seed CompactHardenedCycler Manual? 0 Play Time 00:08:27 Cumulative 36.2 hours Start 2024.09.02 @ 20:48:55 End 2024.09.02 @ 20:56:38 Sessions 1 Manual Loads 0 Difficulty Rogue Special Mode None Game No. 34 Rogue 30 Adventurer 4 Explorer 0 Win Type - Total 0 Types 0/0/0/0/0/0/0/0/0 Lore% 11 Gallery% 24 Achievement% 23 Wizard Run 0 Options --------- Layout 1 ASCII 0 Keyboard 0 Movement Mouse Keybinds 0 Fullscreen 1 Font 32/SmallcapsGlow Map View 50x35 Zoom Use 0% Tactical HUD 1 Map Filters NONE Filters NONE Steam 1 RUN: 6bed85c0-a0f3-4b09-81c7-96904429ae79